fUSD/lending_fUSD_20240903
["ID","MTS","AMOUNT","RATE_DAILY","PERIOD"]
[337054613,1725387050282,-500.0,0.00014024,2]
[337054614,1725387050292,-500.0,0.00014024,2]
[337054615,1725387050302,-1170.68,0.00014024,2]
[337054616,1725387050311,-500.0,0.00014024,2]
[337054617,1725387050320,-1170.68,0.00014024,2]
[337054618,1725387050330,-500.0,0.00014024,2]
[337054619,1725387050339,-500.0,0.00014024,2]
[337054620,1725387050349,-500.0,0.00014024,2]
[337054621,1725387050358,-159.31403836,0.00014024,2]
[337054622,1725387050367,-616.69,0.00014024,2]
[337054623,1725387050376,-616.69,0.00014024,2]
[337054624,1725387050386,-616.69,0.00014024,2]
[337054625,1725387050395,-616.69,0.00014024,2]
[337054626,1725387050407,-616.69,0.00014024,2]
[337054627,1725387050416,-616.69,0.00014024,2]
[337054628,1725387050425,-616.69,0.00014024,2]
[337054629,1725387050435,-714.81,0.00014024,2]
[337054630,1725387050445,-714.81,0.00014024,2]
[337054631,1725387050454,-500.0,0.00014024,2]
[337054632,1725387050464,-500.0,0.00014024,2]
[337054633,1725387050473,-820.4,0.00014024,2]
[337054634,1725387050483,-500.0,0.00014024,2]
[337054635,1725387050493,-820.4,0.00014024,2]
[337054636,1725387050503,-500.0,0.00014024,2]
[337054637,1725387050513,-500.0,0.00014024,2]
[337054638,1725387050522,-583.38,0.00014024,2]
[337054639,1725387050531,-500.0,0.00014024,2]
[337054640,1725387050541,-583.38,0.00014024,2]
[337054641,1725387050550,-500.0,0.00014024,2]
[337054642,1725387050561,-500.0,0.00014024,2]
[337054643,1725387050573,-583.38,0.00014024,2]
[337054644,1725387050582,-583.38,0.00014024,2]
[337054645,1725387050591,-583.38,0.00014024,2]
[337054646,1725387050601,-547.39,0.00014024,2]
[337054647,1725387050611,-583.38,0.00014024,2]
[337054648,1725387050621,-547.39,0.00014024,2]
[337054649,1725387050630,-583.38,0.00014024,2]
[337054650,1725387050640,-547.39,0.00014024,2]
[337054651,1725387050653,-547.39,0.00014024,2]
[337054652,1725387050663,-547.39,0.00014024,2]
[337054653,1725387050673,-500.0,0.00014024,2]
[337054654,1725387050683,-547.39,0.00014024,2]
[337054655,1725387050693,-500.0,0.00014024,2]
[337054656,1725387050702,-547.39,0.00014024,2]
[337054657,1725387050712,-500.0,0.00014024,2]
[337054658,1725387050722,-500.0,0.00014024,2]
[337054659,1725387050732,-500.0,0.00014024,2]
[337054660,1725387050741,-500.0,0.00014024,2]
[337054661,1725387050751,-1060.35,0.00014024,2]
[337054662,1725387050760,-1060.35,0.00014024,2]
[337054663,1725387050770,-500.0,0.00014024,2]
[337054664,1725387050779,-503.89698701,0.00014024,2]
[337054665,1725387050789,-500.0,0.00014024,2]
[337054666,1725387050799,-500.0,0.00014024,2]
[337054667,1725387050808,-500.0,0.00014024,2]
[337054668,1725387050818,-500.0,0.00014024,2]
[337054669,1725387050827,-1032.68,0.00014024,2]
[337054670,1725387050837,-500.0,0.00014024,2]
[337054671,1725387050847,-1032.68,0.00014024,2]
[337054672,1725387050857,-500.0,0.00014024,2]
[337054673,1725387050867,-1032.68,0.00014024,2]
[337054674,1725387050876,-1032.68,0.00014024,2]
[337054675,1725387050886,-1032.68,0.00014024,2]
[337054676,1725387050896,-1032.68,0.00014024,2]
[337054677,1725387050907,-234.62961622,0.00014024,2]
[337054678,1725387052867,-409.120928,0.00014024,2]
[337054679,1725387052878,-388.92945578,0.00014024,2]
[337054680,1725387052888,-557.88,0.00014024,2]
[337054681,1725387052897,-500.0,0.00014024,2]
[337054682,1725387052913,-557.88,0.00014024,2]
[337054683,1725387052923,-2957.38,0.00014024,2]
[337054684,1725387052932,-557.88,0.00014024,2]
[337054685,1725387052942,-500.0,0.00014024,2]
[337054686,1725387052951,-2957.38,0.00014024,2]
[337054687,1725387052961,-557.88,0.00014024,2]
[337054688,1725387052970,-500.0,0.00014024,2]
[337054689,1725387052980,-557.88,0.00014024,2]
[337054690,1725387052990,-500.0,0.00014024,2]
[337054691,1725387052999,-479.38728326,0.00014024,2]
[337054692,1725387064671,500.0,9.972e-05,2]
[337054693,1725387064833,500.0,0.00012164,2]
[337054694,1725387066803,500.0,0.00012712,2]
[337054695,1725387080792,1600.0,9.972e-05,2]
[337054696,1725387081251,1800.0,9.972e-05,2]
[337054697,1725387082371,1600.0,0.00011342,2]
[337054698,1725387082468,1800.0,0.00011342,2]
[337054699,1725387083982,1600.0,0.00012712,2]
[337054700,1725387084186,1800.0,0.00012712,2]
[337054701,1725387126366,500.0,9.972e-05,2]
[337054702,1725387127938,500.0,0.00012712,2]
[337054703,1725387136380,10744.74,0.00012632,2]
[337054704,1725387143237,4500.0,0.00012,30]
[337054705,1725387176519,213.15,0.00012527,2]
[337054706,1725387228733,250.0,0.00012495,2]
[337054707,1725387288645,10547.93,0.00012409,2]
[337054708,1725387321494,727.2,0.00010523,2]
[337054709,1725387321745,727.2,0.00012787,2]
[337054712,1725387346159,250.0,0.00012417,2]
[337054714,1725387353021,250.0,0.00012417,2]
[337054716,1725387359213,548.2,0.00012417,2]
[337054720,1725387395901,232.91,0.00012455,2]
[337054731,1725387494834,1510.26,0.00012516,2]
[337054733,1725387500580,272.49,0.00012417,2]
[337054735,1725387518239,4365.69,0.00012417,2]
[337054737,1725387644946,213.15,0.00012423,2]
[337054738,1725387698194,254.41,0.00012505,2]
[337054741,1725387739564,550.0,0.00011,2]
[337054742,1725387740698,600.0,0.00013,2]
[337054747,1725387797858,654.48,0.00010505,2]
[337054748,1725387798279,654.48,0.00012769,2]
[337054750,1725387843329,150.0,0.0001246,2]
[337054751,1725387848379,250.0,0.00012417,2]
[337054752,1725387864369,561.44,0.00012457,2]
[337054753,1725387912815,165.35,0.00012461,2]
[337054754,1725387929680,384.29515437,0.000101,2]
[337054755,1725387936337,1800.0,9.5e-05,2]
[337054758,1725388111181,-321.31,0.00013072,2]
[337054759,1725388111211,-321.31,0.00013075,2]
[337054761,1725388111240,-321.31,0.00013079,2]
[337054762,1725388111269,-321.31,0.00013082,2]
[337054763,1725388111298,-321.31,0.00013086,2]
[337054764,1725388111327,-321.31,0.00013089,2]
[337054766,1725388111357,-321.31,0.00013093,2]
[337054767,1725388111388,-321.31,0.00013096,2]
[337054768,1725388111418,-321.31,0.000131,2]
[337054769,1725388111448,-321.31,0.00013103,2]
[337054770,1725388111477,-321.31,0.00013106,2]
[337054771,1725388111506,-321.31,0.0001311,2]
[337054772,1725388111535,-321.31,0.00013113,2]
[337054773,1725388111563,-321.31,0.00013117,2]
[337054774,1725388111591,-321.31,0.0001312,2]
[337054775,1725388111620,-321.31,0.00013124,2]
[337054776,1725388111649,-321.31,0.00013127,2]
[337054777,1725388111679,-169.41607429,0.00013131,2]
[337054778,1725388111715,-151.89392571,0.00013131,2]
[337054779,1725388111745,-321.31,0.00013134,2]
[337054780,1725388112089,-321.31,0.00013138,2]
[337054781,1725388112118,-4837.17214858,0.00013198,2]
[337054782,1725388112156,-4940.62644118,0.00013198,2]
[337054783,1725388112195,-5631.68607429,0.00013198,2]
[337054785,1725388136085,-4338.24743756,0.00013006,2]
[337054788,1725388146539,195.29,0.00012972,2]
[337054789,1725388162062,298.49,0.00010959,2]
[337054812,1725388231677,-420.1107,0.00013132,2]
[337054814,1725388231687,-491.42118972,0.00013198,2]
[337054816,1725388231697,-300.0,0.00013331,2]
[337054818,1725388231707,-500.0,0.00013332,2]
[337054821,1725388231717,-500.0,0.00013332,2]
[337054822,1725388231727,-233.35872265,0.00013332,2]
[337054823,1725388231739,-266.64127735,0.00013332,2]
[337054824,1725388231749,-500.0,0.00013332,2]
[337054825,1725388231758,-500.0,0.00013332,2]
[337054826,1725388231767,-500.0,0.00013332,2]
[337054827,1725388231777,-128.22603828,0.00013332,2]
[337054828,1725388231790,-371.77396172,0.00013332,2]
[337054829,1725388231799,-500.0,0.00013332,2]
[337054830,1725388231809,-500.0,0.00013332,2]
[337054831,1725388231818,-299.48534741,0.00013332,2]
[337054832,1725388231830,-200.51465259,0.00013332,2]
[337054833,1725388231840,-500.0,0.00013332,2]
[337054834,1725388231849,-500.0,0.00013332,2]
[337054835,1725388231859,-500.0,0.00013332,2]
[337054836,1725388231869,-500.0,0.00013332,2]
[337054837,1725388231879,-500.0,0.00013332,2]
[337054838,1725388231889,-500.0,0.00013332,2]
[337054839,1725388231898,-500.0,0.00013332,2]
[337054840,1725388231908,-288.94248258,0.00013332,2]
[337054841,1725388231920,-211.05751742,0.00013332,2]
[337054842,1725388231929,-500.0,0.00013332,2]
[337054843,1725388231941,-500.0,0.00013332,2]
[337054844,1725388231950,-500.0,0.00013332,2]
[337054845,1725388231959,-500.0,0.00013332,2]
[337054846,1725388231969,-500.0,0.00013332,2]
[337054847,1725388231979,-500.0,0.00013332,2]
[337054848,1725388231989,-500.0,0.00013332,2]
[337054849,1725388231999,-500.0,0.00013332,2]
[337054850,1725388232008,-500.0,0.00013332,2]
[337054851,1725388232022,-500.0,0.00013332,2]
[337054852,1725388232032,-500.0,0.00013332,2]
[337054853,1725388232042,-500.0,0.00013332,2]
[337054854,1725388232052,-500.0,0.00013332,2]
[337054855,1725388232061,-500.0,0.00013332,2]
[337054856,1725388232070,-500.0,0.00013332,2]
[337054857,1725388232079,-500.0,0.00013332,2]
[337054858,1725388232089,-500.0,0.00013332,2]
[337054859,1725388232098,-500.0,0.00013332,2]
[337054860,1725388232108,-500.0,0.00013332,2]
[337054861,1725388232117,-500.0,0.00013332,2]
[337054862,1725388232127,-500.0,0.00013332,2]
[337054863,1725388232136,-500.0,0.00013332,2]
[337054864,1725388232146,-500.0,0.00013332,2]
[337054865,1725388232155,-500.0,0.00013332,2]
[337054866,1725388232165,-500.0,0.00013332,2]
[337054867,1725388232174,-500.0,0.00013332,2]
[337054868,1725388232184,-134.00140586,0.00013332,2]
[337054869,1725388232196,-365.99859414,0.00013332,2]
[337054870,1725388232206,-492.16531539,0.00013332,2]
[337054871,1725388232222,-7.83468461,0.00013332,2]
[337054872,1725388232232,-500.0,0.00013332,2]
[337054873,1725388232241,-500.0,0.00013332,2]
[337054874,1725388232251,-500.0,0.00013332,2]
[337054875,1725388232260,-500.0,0.00013332,2]
[337054876,1725388232270,-346.8979399,0.00013332,2]
[337054877,1725388232281,-153.1020601,0.00013332,2]
[337054878,1725388232303,-300.4079399,0.00013332,2]
[337054879,1725388232326,-199.5920601,0.00013332,2]
[337054880,1725388232342,-500.0,0.00013332,2]
[337054881,1725388232353,-500.0,0.00013332,2]
[337054882,1725388232362,-500.0,0.00013332,2]
[337054883,1725388232372,-500.0,0.00013332,2]
[337054884,1725388232382,-500.0,0.00013332,2]
[337054885,1725388232392,-500.0,0.00013332,2]
[337054886,1725388232402,-500.0,0.00013332,2]
[337054887,1725388232411,-500.0,0.00013332,2]
[337054888,1725388232420,-500.0,0.00013332,2]
[337054889,1725388232430,-500.0,0.00013332,2]
[337054890,1725388232440,-500.0,0.00013332,2]
[337054891,1725388232450,-11.39542683,0.00013332,2]
[337054895,1725388237711,-488.60457317,0.00013332,2]
[337054897,1725388237721,-500.0,0.00013332,2]
[337054898,1725388237730,-500.0,0.00013332,2]
[337054899,1725388237739,-500.0,0.00013332,2]
[337054900,1725388237749,-500.0,0.00013332,2]
[337054901,1725388237758,-26.86941358,0.00013332,2]
[337054902,1725388237769,-473.13058642,0.00013332,2]
[337054903,1725388237778,-500.0,0.00013332,2]
[337054904,1725388237787,-500.0,0.00013332,2]
[337054905,1725388237796,-500.0,0.00013332,2]
[337054906,1725388237806,-500.0,0.00013332,2]
[337054907,1725388237815,-500.0,0.00013332,2]
[337054908,1725388237824,-500.0,0.00013332,2]
[337054909,1725388237835,-500.0,0.00013332,2]
[337054910,1725388237844,-500.0,0.00013332,2]
[337054911,1725388237853,-500.0,0.00013332,2]
[337054912,1725388237864,-93.19096232,0.00013332,2]
[337054913,1725388237877,-406.80903768,0.00013332,2]
[337054914,1725388237887,-500.0,0.00013332,2]
[337054915,1725388237898,-137.81160146,0.00013332,2]
[337054916,1725388237915,-362.18839854,0.00013332,2]
[337054917,1725388237925,-467.52529529,0.00013332,2]
[337054918,1725388237941,-32.47470471,0.00013332,2]
[337054919,1725388237951,-500.0,0.00013332,2]
[337054920,1725388237960,-302.84531337,0.00013332,2]
[337054921,1725388237971,-197.15468663,0.00013332,2]
[337054922,1725388237982,-500.0,0.00013332,2]
[337054923,1725388237991,-500.0,0.00013332,2]
[337054924,1725388238000,-500.0,0.00013332,2]
[337054925,1725388238011,-500.0,0.00013332,2]
[337054926,1725388238020,-500.0,0.00013332,2]
[337054927,1725388238029,-500.0,0.00013332,2]
[337054928,1725388238039,-500.0,0.00013332,2]
[337054929,1725388238048,-320.23271338,0.00013332,2]
[337054930,1725388238066,-179.76728662,0.00013332,2]
[337054931,1725388238075,-500.0,0.00013332,2]
[337054932,1725388238085,-500.0,0.00013332,2]
[337054933,1725388238095,-500.0,0.00013332,2]
[337054934,1725388238104,-500.0,0.00013332,2]
[337054935,1725388238113,-500.0,0.00013332,2]
[337054936,1725388238122,-500.0,0.00013332,2]
[337054937,1725388238131,-500.0,0.00013332,2]
[337054938,1725388238140,-317.92735383,0.00013332,2]
[337054940,1725388238151,-182.07264617,0.00013332,2]
[337054942,1725388238161,-609.61,0.00013332,2]
[337054943,1725388238170,-500.0,0.00013332,2]
[337054944,1725388238180,-500.0,0.00013332,2]
[337054945,1725388238189,-588.67,0.00013332,2]
[337054946,1725388238198,-500.0,0.00013332,2]
[337054947,1725388238208,-500.0,0.00013332,2]
[337054948,1725388238217,-500.0,0.000135,2]
[337054949,1725388238227,-2727.13378422,0.00013821,2]
[337054950,1725388238236,-1932.80860264,0.00013821,2]
[337054952,1725388238245,-317.13339458,0.00013821,2]
[337054954,1725388238254,-6077.0,0.00013822,2]
[337054956,1725388238264,-11470.96967227,0.00013822,2]
[337055027,1725388239768,-3504.1443,0.00013822,2]
[337055028,1725388239797,-1123.45716075,0.00013822,2]
[337055029,1725388239808,-743.53229244,0.00013822,2]
[337055030,1725388239904,-6356.23636126,0.00013822,2]
[337055031,1725388239919,-1367.76559331,0.00013822,2]
[337055032,1725388239996,-620.88139838,0.00013822,2]
[337055033,1725388240007,-322.56152394,0.00013822,2]
[337055034,1725388240020,-1568.29552831,0.00013822,2]
[337055035,1725388240089,-424.16972807,0.00013822,2]
[337055036,1725388240101,-3868.2,0.00013822,2]
[337055055,1725388240326,-384.72213308,0.00013822,2]
[337055056,1725388240338,-2192.60000819,0.00013822,2]
[337055057,1725388240347,-1512.44999181,0.00013822,2]
[337055058,1725388240358,-1873.3,0.00013822,2]
[337055065,1725388243124,-377.11693109,0.00013822,2]
[337055066,1725388243160,-1079.31918,0.00013822,2]
[337055067,1725388243173,-457.46219434,0.00013822,2]
[337055068,1725388243184,-265.6000002,0.00013822,2]
[337055071,1725388244038,-653.31270692,0.00013822,2]
[337055074,1725388245707,-668.30843146,0.00013822,2]
[337055075,1725388245949,-591.04646418,0.00013822,2]
[337055076,1725388245959,-382.20264209,0.00013822,2]
[337055077,1725388246048,-1442.97355791,0.00013822,2]
[337055078,1725388246058,-1358.7831,0.00013822,2]
[337055079,1725388246067,-500.0,0.0001388,2]
[337055080,1725388246076,-500.0,0.0001388,2]
[337055081,1725388246085,-151.4900043,0.00013918,2]
[337055082,1725388246095,-153.66948666,0.00013919,2]
[337055083,1725388246105,-431.78153563,0.0001392,2]
[337055084,1725388246114,-500.0,0.0001392,2]
[337055085,1725388246123,-500.0,0.0001392,2]
[337055086,1725388246134,-500.0,0.0001392,2]
[337055087,1725388246143,-311.45073747,0.0001392,2]
[337055089,1725388246153,-500.0,0.00013921,2]
[337055091,1725388246162,-500.0,0.00013921,2]
[337055092,1725388246171,-585.34,0.00013921,2]
[337055093,1725388246180,-500.0,0.00013921,2]
[337055094,1725388246189,-500.0,0.00013921,2]
[337055095,1725388246199,-500.0,0.00013921,2]
[337055096,1725388246208,-1130.94,0.00013921,2]
[337055097,1725388246220,-500.0,0.00013921,2]
[337055098,1725388246229,-573.04838436,0.00013921,2]
[337055099,1725388306472,589.03,0.00011116,2]
[337055100,1725388483479,1000.0,0.00013,2]
[337055101,1725388639774,151.36,0.00012988,2]
[337055102,1725388829525,-150.0,0.00013003,2]
[337055103,1725388968911,200.0,0.00013002,2]
[337055104,1725388988687,559.57,0.00011085,2]
[337055105,1725389157059,200.79,0.00012969,2]
[337055106,1725389317202,250.0,0.00012984,2]
[337055107,1725389365402,-553.64586937,0.00013058,2]
[337055108,1725389390232,-872.88833729,0.00013058,2]
[337055118,1725389431924,-150.67579334,0.00013058,2]
[337055119,1725389431935,-246.40805087,0.00013349,2]
[337055120,1725389431969,-313.16194913,0.00013349,2]
[337055121,1725389431980,-1265.39561902,0.00013732,2]
[337055122,1725389432023,-258.76851609,0.00013732,2]
[337055123,1725389432067,-319.86038199,0.00013732,2]
[337055124,1725389432119,-1817.0535657,0.00013732,2]
[337055125,1725389432163,-1407.77261442,0.00013732,2]
[337055126,1725389432184,-4055.5833942,0.0001378,2]
[337055127,1725389432208,-822.5,0.0001378,2]
[337055299,1725389438002,-1451.33807564,0.0001378,2]
[337055300,1725389438055,-1216.02192436,0.0001378,2]
[337055302,1725389438209,-988.08183481,0.0001378,2]
[337055304,1725389438222,-2187.48865814,0.0001378,2]
[337055306,1725389438234,-978.46815659,0.0001378,2]
[337055353,1725389439916,-527.63515003,0.0001378,2]
[337055354,1725389439929,-526.41,0.0001378,2]
[337055355,1725389440001,-754.17412895,0.0001378,2]
[337055356,1725389440012,-2638.21300112,0.0001378,2]
[337055357,1725389440022,-150.0,0.00013781,2]
[337055358,1725389440032,-461.7404059,0.00013819,2]
[337055359,1725389440079,-753.83647302,0.00013819,2]
[337055360,1725389440090,-523.95086351,0.00013819,2]
[337055361,1725389440100,-746.37081698,0.0001382,2]
[337055362,1725389440164,-306.09729367,0.0001382,2]
[337055449,1725389443950,-338.94299958,0.0001382,2]
[337055452,1725389443969,-6108.58888977,0.0001382,2]
[337055454,1725389443978,-170.511,0.00013821,2]
[337055456,1725389443987,-153.66948665,0.00013821,2]
[337055458,1725389443997,-5870.64577403,0.000139,2]
[337055460,1725389444006,-151.4900043,0.00013917,2]
[337055462,1725389444015,-588.9,0.00013919,2]
[337055464,1725389444024,-588.9,0.00013919,2]
[337055466,1725389444034,-554.27710189,0.00013919,2]
[337055468,1725389444043,-556.96,0.00013919,2]
[337055469,1725389444052,-556.96,0.00013919,2]
[337055470,1725389444062,-500.0,0.00013919,2]
[337055471,1725389444071,-500.0,0.00013919,2]
[337055472,1725389444080,-698.66,0.00013919,2]
[337055473,1725389444090,-698.66,0.00013919,2]
[337055474,1725389444099,-500.0,0.00013919,2]
[337055475,1725389444109,-500.0,0.00013919,2]
[337055476,1725389444118,-500.0,0.00013919,2]
[337055477,1725389444127,-500.0,0.00013919,2]
[337055478,1725389444136,-500.0,0.00013919,2]
[337055479,1725389444145,-500.0,0.00013919,2]
[337055480,1725389444156,-500.0,0.00013919,2]
[337055481,1725389444165,-500.0,0.00013919,2]
[337055482,1725389444174,-500.0,0.00013919,2]
[337055483,1725389444186,-500.0,0.00013919,2]
[337055484,1725389444195,-500.0,0.00013919,2]
[337055485,1725389444204,-500.0,0.00013919,2]
[337055486,1725389444214,-334.44260746,0.00013919,2]
[337055487,1725389444223,-516.34,0.00013919,2]
[337055488,1725389444232,-516.34,0.00013919,2]
[337055489,1725389444242,-819.31,0.00013919,2]
[337055490,1725389444251,-819.31,0.00013919,2]
[337055491,1725389444260,-1145.47,0.00013919,2]
[337055492,1725389444270,-1145.47,0.00013919,2]
[337055493,1725389444279,-500.0,0.00013919,2]
[337055494,1725389444288,-500.0,0.00013919,2]
[337055495,1725389444297,-500.0,0.00013919,2]
[337055496,1725389444306,-500.0,0.00013919,2]
[337055497,1725389444316,-500.0,0.00013919,2]
[337055498,1725389444326,-500.0,0.00013919,2]
[337055499,1725389444339,-500.0,0.00013919,2]
[337055500,1725389444349,-586.08,0.00013919,2]
[337055501,1725389444359,-586.08,0.00013919,2]
[337055502,1725389444368,-500.0,0.00013919,2]
[337055503,1725389444379,-500.0,0.00013919,2]
[337055504,1725389444388,-5516.23,0.00013919,2]
[337055505,1725389444398,-500.0,0.00013919,2]
[337055506,1725389444408,-500.0,0.00013919,2]
[337055507,1725389444420,-500.0,0.00013919,2]
[337055508,1725389444431,-500.0,0.00013919,2]
[337055509,1725389444440,-500.0,0.00013919,2]
[337055510,1725389444450,-500.0,0.00013919,2]
[337055511,1725389444460,-500.0,0.00013919,2]
[337055512,1725389444470,-500.0,0.00013919,2]
[337055513,1725389444480,-500.0,0.00013919,2]
[337055514,1725389444489,-500.0,0.00013919,2]
[337055515,1725389444498,-563.63,0.00013919,2]
[337055516,1725389444508,-563.63,0.00013919,2]
[337055517,1725389444517,-1850.74,0.00013919,2]
[337055518,1725389444527,-854.09,0.00013919,2]
[337055519,1725389444537,-854.09,0.00013919,2]
[337055520,1725389444546,-854.09,0.00013919,2]
[337055521,1725389444556,-1156.31,0.00013919,2]
[337055522,1725389444566,-1156.31,0.00013919,2]
[337055523,1725389444576,-1183.24,0.00013919,2]
[337055524,1725389444585,-1183.24,0.00013919,2]
[337055525,1725389444595,-5894.99,0.00013919,2]
[337055526,1725389444604,-651.15,0.00013919,2]
[337055527,1725389444614,-651.15,0.00013919,2]
[337055528,1725389444623,-2744.42,0.00013919,2]
[337055529,1725389444633,-1728.98,0.00013919,2]
[337055530,1725389444642,-1728.98,0.00013919,2]
[337055531,1725389444652,-1728.98,0.00013919,2]
[337055532,1725389444661,-3228.95,0.00013919,2]
[337055533,1725389444671,-3711.23,0.00013919,2]
[337055534,1725389444680,-5006.14,0.00013919,2]
[337055535,1725389444700,-5006.14,0.00013919,2]
[337055536,1725389444709,-5006.14,0.00013919,2]
[337055537,1725389444718,-500.0,0.00013919,2]
[337055538,1725389444728,-500.0,0.00013919,2]
[337055539,1725389444738,-2073.24,0.00013919,2]
[337055540,1725389444747,-2073.24,0.00013919,2]
[337055541,1725389444757,-2073.24,0.00013919,2]
[337055542,1725389444766,-500.0,0.00013919,2]
[337055543,1725389444775,-500.0,0.00013919,2]
[337055544,1725389444785,-500.0,0.00013919,2]
[337055545,1725389444794,-500.0,0.00013919,2]
[337055546,1725389444804,-2758.45,0.00013919,2]
[337055547,1725389444813,-5538.72,0.00013919,2]
[337055548,1725389444822,-2758.45,0.00013919,2]
[337055549,1725389444832,-2758.45,0.00013919,2]
[337055550,1725389444841,-1439.3,0.00013919,2]
[337055551,1725389444851,-587.9,0.00013919,2]
[337055552,1725389444861,-587.9,0.00013919,2]
[337055553,1725389444870,-500.0,0.00013919,2]
[337055554,1725389444879,-500.0,0.00013919,2]
[337055555,1725389444889,-500.0,0.00013919,2]
[337055556,1725389444899,-500.0,0.00013919,2]
[337055557,1725389444908,-500.0,0.00013919,2]
[337055558,1725389444918,-500.0,0.00013919,2]
[337055559,1725389444927,-500.0,0.00013919,2]
[337055560,1725389444937,-322.77440055,0.00013919,2]
[337055561,1725389444946,-500.0,0.00013919,2]
[337055562,1725389444955,-500.0,0.00013919,2]
[337055563,1725389444964,-500.0,0.00013919,2]
[337055564,1725389444974,-885.08,0.00013919,2]
[337055565,1725389444983,-885.08,0.00013919,2]
[337055566,1725389444992,-885.08,0.00013919,2]
[337055567,1725389445002,-500.0,0.00013919,2]
[337055568,1725389445011,-649.56195229,0.00013919,2]
[337055569,1725389445021,-2089.06,0.00013919,2]
[337055570,1725389445030,-4804.45,0.00013919,2]
[337055571,1725389445040,-3094.62,0.00013919,2]
[337055572,1725389445049,-3094.62,0.00013919,2]
[337055573,1725389445059,-3094.62,0.00013919,2]
[337055574,1725389445068,-2594.39,0.00013919,2]
[337055575,1725389445078,-2594.39,0.00013919,2]
[337055576,1725389445087,-560.95,0.00013919,2]
[337055577,1725389445096,-560.95,0.00013919,2]
[337055578,1725389445106,-560.95,0.00013919,2]
[337055579,1725389445115,-1717.71,0.00013919,2]
[337055580,1725389445124,-1754.2,0.00013919,2]
[337055581,1725389445134,-1341.63,0.00013919,2]
[337055582,1725389445144,-1341.63,0.00013919,2]
[337055583,1725389445153,-6996.54,0.00013919,2]
[337055584,1725389445163,-1277.88,0.00013919,2]
[337055585,1725389445172,-1277.88,0.00013919,2]
[337055586,1725389445185,-1277.88,0.00013919,2]
[337055587,1725389445196,-1002.98,0.00013919,2]
[337055588,1725389445206,-1002.98,0.00013919,2]
[337055589,1725389445216,-2261.95,0.00013919,2]
[337055590,1725389445226,-1926.75,0.00013919,2]
[337055591,1725389445235,-1926.75,0.00013919,2]
[337055592,1725389445244,-4113.9,0.00013919,2]
[337055593,1725389445254,-500.0,0.00013919,2]
[337055594,1725389445263,-500.0,0.00013919,2]
[337055595,1725389445274,-500.0,0.00013919,2]
[337055596,1725389445283,-1079.27,0.00013919,2]
[337055597,1725389445292,-1079.27,0.00013919,2]
[337055598,1725389445301,-500.0,0.00013919,2]
[337055599,1725389445310,-627.75851126,0.00013919,2]
[337055600,1725389445320,-637.25,0.00013919,2]
[337055601,1725389445333,-637.25,0.00013919,2]
[337055602,1725389445343,-637.25,0.00013919,2]
[337055603,1725389445353,-713.34,0.00013919,2]
[337055604,1725389445363,-713.34,0.00013919,2]
[337055605,1725389445373,-500.0,0.00013919,2]
[337055606,1725389445383,-2498.35,0.00013919,2]
[337055607,1725389445393,-2498.35,0.00013919,2]